{"text_format":"1","workbook":"xlsx","n_sheets":1,"sheets":["einlieferungsliste"],"not_rendered":{"charts":0,"images":0,"macros":1,"external_links":0,"defined_names":21,"comments":1,"pivot_tables":0},"unopened":[],"bounds":{"document_bytes":16777216,"sheet_cells":100000,"rows_first":2000,"rows_last":500,"rows_between":2000,"halvings":0,"cell_chars":16384,"cell_head_chars":4096},"cells_cut":0,"cells_raw":0,"read":"whole","date_system":"1900"}

{"sheet":"einlieferungsliste","index":0,"n_rows":130,"n_cols":21,"rows_kept":130,"cut":false,"hidden":false,"merged":[]}
[]
[null,"Einlieferungsliste"]
[null,"Geben Sie bitte hier Ihre Daten ein:",null,null,null,null,"Anleitung:"]
[null,null,null,null,"Name:","Beier","Schritt 1:","Nur in weißen Feldern eintragen; Löschen Sie ggf. die Einträge in der Einlieferungsliste"]
[null,null,null,null,"Vorname:","Jürgen","Schritt 2:","Bitte geben Sie links Ihre persönlichen Daten entsprechend der Referenz ein!"]
[null,null,null,null,"Anschrift:","Karl-Liebknecht-Straße 5","Schritt 3:","Beginnen Sie beim Eintragen der Vögel mit Geschlecht und Alter. "]
[null,null,null,null,"PLZ :",15732,"Schritt 4:","Wählen Sie in Spalte Farbe/ Zeichnung die entsprechende Schauklasse "]
[null,null,null,null,"Ort:","Schulzendorf",null,"aus dem Drop-Downmenü. Die Bestimmung der Klasse erfolgt automatisch."]
[null,null,null,null,"Land:","D","Schritt 5:","Geben Sie die laufende Ringnummer, das Jahr und Ihre Züchternummer ein."]
[null,null,null,null,"Züchterstatus:","Fortgeschrittene",null,"Daraus erstellt das Program eine zusammengesetzte Ringnummer."]
[null,null,null,null,"Nummer:",2237,"Schritt 6:","Fahren Sie mit jedem weiteren Vogel entsprechend fort.",null,null,null,null,null,null,null,null,null,null,"Farbgruppenschlüssel"]
[null,null,null,null,"Verein: ",null,"Schritt 7:","Speichern Sie und versenden Sie die Einlieferungsliste als Anhang per Mail "]
[null,null,null,null,"Zeit:",{"$f":"NOW()","v":"2019-08-05T22:15:22.370"},null,"an h.juergen.beier@web.de"]
[null,null,null,null,"Schau:","Offene Schau des Vereins BWZ e.V.",null,"WICHTIG: Das Ausdrucken ist nicht nötig!!",null,null,null,null,null,null,null,null,null,null,"Nr","Farbe","Farbklasse"]
[null,null,null,null,null,null,null,"Wir schicken nach Zusendung der Liste eine druckbare .pdf zum Abgleich",null,null,null,null,null,null,null,null,null,null,null,null,"Derby"]
[null,null,null,null,null,null,"!!!!!!!","Änderungen und Korrekturen sind direkt bei Einlieferung noch möglich!!!!"]
[null,"Füllen Sie bitte die Einlieferungsliste aus:"]
[null,"Pos.","1,0 / 0,1 / 1,1","Alt/Jung","Klasse","Farbe/ Zeichnung","Rg-Nr.","Jahr","Zeichen",null,null,null,null,null,null,null,"Referenz",null,0]
[null,1,"1,0","A",{"$f":"IF(Q19=\"\",\"\",VLOOKUP(Q19,klassen,3))","v":1},"Hellgrün",126,"2019",{"$f":"Nummer","v":2237},null,null,null,null,null,null,{"$f":"T19","v":"Hellgrün"},{"$f":"IF(F19=\"\",\"\",MATCH(F19,$T$19:$T$119,))","v":1},null,1,"Hellgrün",1]
[null,2,null,null,{"$f":"IF(Q20=\"\",\"\",VLOOKUP(Q20,klassen,3))","v":""},null,null,null,null,null,null,null,null,null,null,{"$f":"T20","v":"Graugrün"},{"$f":"IF(F20=\"\",\"\",MATCH(F20,$T$19:$T$119,))","v":""},null,2,"Graugrün",2]
[null,3,null,null,"",null,null,null,null,null,null,null,null,null,null,"Dunkelgrün+Oliv","",null,3,"Dunkelgrün+Oliv",3]
[null,4,null,"J","",null,null,null,null,null,null,null,null,null,null,"Hellblau","",null,4,"Hellblau",4]
[null,5,null,null,"",null,null,null,null,null,null,null,null,null,null,"Grau","",null,5,"Grau",5]
[null,6,null,null,"",null,null,null,null,null,null,null,null,null,null,"Dunkelblau+Mauve","",null,6,"Dunkelblau+Mauve",6]
[null,7,null,null,"",null,null,null,null,null,null,null,null,null,null,"Violett","",null,7,"Violett",7]
[null,8,null,null,"",null,null,null,null,null,null,null,null,null,null,"Gelbgesichter (einschl. AGG)","",null,8,"Gelbgesichter (einschl. AGG)",8]
[null,9,null,null,"",null,null,null,null,null,null,null,null,null,null,"Lutino","",null,9,"Lutino",10]
[null,10,null,null,{"$f":"IF(Q28=\"\",\"\",VLOOKUP(Q28,klassen,3))","v":""},null,null,null,null,null,null,null,null,null,null,"Albino","",null,10,"Albino",11]
[null,11,null,null,"",null,null,null,null,null,null,null,null,null,null,"Lacewing","",null,11,"Lacewing",12]
[null,12,null,null,"",null,null,null,null,null,null,null,null,null,null,"Clearbody","",null,12,"Clearbody",13]
[null,13,null,null,"",null,null,null,null,null,null,null,null,null,null,"Aufgehellte","",null,13,"Aufgehellte",14]
[null,14,null,null,"",null,null,null,null,null,null,null,null,null,null,"Grauflügel","",null,14,"Grauflügel",18]
[null,15,null,null,"",null,null,null,null,null,null,null,null,null,null,"Zimt Grünreihe","",null,15,"Zimt Grünreihe","20/1"]
[null,16,null,null,"",null,null,null,null,null,null,null,null,null,null,null,"",null,16,"Zimt Blaureihe","20/4"]
[null,17,null,null,"",null,null,null,null,null,null,null,null,null,null,null,{"$f":"IF(F35=\"\",\"\",MATCH(F35,$T$19:$T$119,))","v":""},null,17,"Zimt Opalin",21]
[null,18,null,null,"",null,null,null,null,null,null,null,null,null,null,null,"",null,18,"Opalin Grünreihe","22/1"]
[null,19,null,null,"",null,null,null,null,null,null,null,null,null,null,null,"",null,19,"Opalin Blaureihe","22/4"]
[null,20,null,null,"",null,null,null,null,null,null,null,null,null,null,null,"",null,20,"AS Grünreihe","23/1"]
[null,21,null,null,"",null,null,null,null,null,null,null,null,null,null,null,"",null,21,"AS Blaureihe","23/4"]
[null,22,null,null,"",null,null,null,null,null,null,null,null,null,null,null,"",null,22,"Spangle Grünreihe","25/1"]
[null,23,null,null,"",null,null,null,null,null,null,null,null,null,null,null,"",null,23,"Spangle Blaureihe","25/4"]
[null,24,null,null,"",null,null,null,null,null,null,null,null,null,null,null,"",null,24,"DF Spangle","25/9"]
[null,25,null,null,"",null,null,null,null,null,null,null,null,null,null,null,"",null,25,"Paare Standard",27]
[null,26,null,null,"",null,null,null,null,null,null,null,null,null,null,null,"",null,26,"Team Standard",28]
[null,27,null,null,"",null,null,null,null,null,null,null,null,null,null,null,"",null,27,"Hellflügel",31]
[null,28,null,null,"",null,null,null,null,null,null,null,null,null,null,null,"",null,28,"Falben",33]
[null,29,null,null,"",null,null,null,null,null,null,null,null,null,null,null,"",null,29,"RS Grünreihe","35/1"]
[null,30,null,null,"",null,null,null,null,null,null,null,null,null,null,null,"",null,30,"RS Blaureihe","35/4"]
[null,31,null,null,"",null,null,null,null,null,null,null,null,null,null,null,"",null,31,"Dom.(Holl.) Schecken",37]
[null,32,null,null,"",null,null,null,null,null,null,null,null,null,null,null,"",null,32,"Schw. Farben (Schw., Anth., KS)",39]
[null,33,null,null,{"$f":"IF(Q51=\"\",\"\",VLOOKUP(Q51,klassen,3))","v":""},null,null,null,null,null,null,null,null,null,null,null,"",null,33,"Paare Schwierige Farben",47]
[null,34,null,null,"",null,null,null,null,null,null,null,null,null,null,null,"",null,34,"Team Schwierige Farben",48]
[null,35,null,null,"",null,null,null,null,null,null,null,null,null,null,null,"",null,35,"Neuzüchtungen",50]
[null,36,null,null,"",null,null,null,null,null,null,null,null,null,null,null,"",null,36,"Alle anderen Kombinationen",60]
[null,37,null,null,"",null,null,null,null,null,null,null,null,null,null,null,"",null,37]
[null,38,null,null,"",null,null,null,null,null,null,null,null,null,null,null,"",null,38]
[null,39,null,null,"",null,null,null,null,null,null,null,null,null,null,null,"",null,39]
[null,40,null,null,"",null,null,null,null,null,null,null,null,null,null,null,"",null,40]
[null,41,null,null,"",null,null,null,null,null,null,null,null,null,null,null,"",null,41]
[null,42,null,null,"",null,null,null,null,null,null,null,null,null,null,null,"",null,42]
[null,43,null,null,"",null,null,null,null,null,null,null,null,null,null,null,"",null,43]
[null,44,null,null,"",null,null,null,null,null,null,null,null,null,null,null,"",null,44]
[null,45,null,null,"",null,null,null,null,null,null,null,null,null,null,null,"",null,45]
[null,46,null,null,"",null,null,null,null,null,null,null,null,null,null,null,"",null,46]
[null,47,null,null,"",null,null,null,null,null,null,null,null,null,null,null,"",null,47]
[null,48,null,null,"",null,null,null,null,null,null,null,null,null,null,null,"",null,48]
[null,49,null,null,"",null,null,null,null,null,null,null,null,null,null,null,"",null,49]
[null,50,null,null,"",null,null,null,null,null,null,null,null,null,null,null,"",null,50]
[null,51,null,null,"",null,null,null,null,null,null,null,null,null,null,null,"",null,51]
[null,52,null,null,"",null,null,null,null,null,null,null,null,null,null,null,"",null,52]
[null,53,null,null,"",null,null,null,null,null,null,null,null,null,null,null,"",null,53]
[null,54,null,null,"",null,null,null,null,null,null,null,null,null,null,null,"",null,54]
[null,55,null,null,"",null,null,null,null,null,null,null,null,null,null,null,"",null,55]
[null,56,null,null,"",null,null,null,null,null,null,null,null,null,null,null,"",null,56]
[null,57,null,null,"",null,null,null,null,null,null,null,null,null,null,null,"",null,57]
[null,58,null,null,"",null,null,null,null,null,null,null,null,null,null,null,"",null,58]
[null,59,null,null,"",null,null,null,null,null,null,null,null,null,null,null,"",null,59]
[null,60,null,null,"",null,null,null,null,null,null,null,null,null,null,null,"",null,60]
[null,61,null,null,"",null,null,null,null,null,null,null,null,null,null,null,"",null,61]
[null,62,null,null,"",null,null,null,null,null,null,null,null,null,null,null,"",null,62]
[null,63,null,null,"",null,null,null,null,null,null,null,null,null,null,null,"",null,63]
[null,64,null,null,"",null,null,null,null,null,null,null,null,null,null,null,"",null,64]
[null,65,null,null,{"$f":"IF(Q83=\"\",\"\",VLOOKUP(Q83,klassen,3))","v":""},null,null,null,null,null,null,null,null,null,null,null,"",null,65]
[null,66,null,null,"",null,null,null,null,null,null,null,null,null,null,null,{"$f":"IF(F84=\"\",\"\",MATCH(F84,$T$19:$T$119,))","v":""},null,66]
[null,67,null,null,"",null,null,null,null,null,null,null,null,null,null,null,"",null,67]
[null,68,null,null,"",null,null,null,null,null,null,null,null,null,null,null,"",null,68]
[null,69,null,null,"",null,null,null,null,null,null,null,null,null,null,null,"",null,69]
[null,70,null,null,"",null,null,null,null,null,null,null,null,null,null,null,"",null,70]
[null,71,null,null,"",null,null,null,null,null,null,null,null,null,null,null,"",null,71]
[null,72,null,null,"",null,null,null,null,null,null,null,null,null,null,null,"",null,72]
[null,73,null,null,"",null,null,null,null,null,null,null,null,null,null,null,"",null,73]
[null,74,null,null,"",null,null,null,null,null,null,null,null,null,null,null,"",null,74]
[null,75,null,null,"",null,null,null,null,null,null,null,null,null,null,null,"",null,75]
[null,76,null,null,"",null,null,null,null,null,null,null,null,null,null,null,"",null,76]
[null,77,null,null,"",null,null,null,null,null,null,null,null,null,null,null,"",null,77]
[null,78,null,null,"",null,null,null,null,null,null,null,null,null,null,null,"",null,78]
[null,79,null,null,"",null,null,null,null,null,null,null,null,null,null,null,"",null,79]
[null,80,null,null,"",null,null,null,null,null,null,null,null,null,null,null,"",null,80]
[null,81,null,null,"",null,null,null,null,null,null,null,null,null,null,null,"",null,81]
[null,82,null,null,"",null,null,null,null,null,null,null,null,null,null,null,"",null,82]
[null,83,null,null,"",null,null,null,null,null,null,null,null,null,null,null,"",null,83]
[null,84,null,null,"",null,null,null,null,null,null,null,null,null,null,null,"",null,84]
[null,85,null,null,"",null,null,null,null,null,null,null,null,null,null,null,"",null,85]
[null,86,null,null,"",null,null,null,null,null,null,null,null,null,null,null,"",null,86]
[null,87,null,null,"",null,null,null,null,null,null,null,null,null,null,null,"",null,87]
[null,88,null,null,"",null,null,null,null,null,null,null,null,null,null,null,"",null,88]
[null,89,null,null,"",null,null,null,null,null,null,null,null,null,null,null,"",null,89]
[null,90,null,null,"",null,null,null,null,null,null,null,null,null,null,null,"",null,90]
[null,91,null,null,"",null,null,null,null,null,null,null,null,null,null,null,"",null,91]
[null,92,null,null,"",null,null,null,null,null,null,null,null,null,null,null,"",null,92]
[null,93,null,null,"",null,null,null,null,null,null,null,null,null,null,null,"",null,93]
[null,94,null,null,"",null,null,null,null,null,null,null,null,null,null,null,"",null,94]
[null,95,null,null,"",null,null,null,null,null,null,null,null,null,null,null,"",null,95]
[null,96,null,null,"",null,null,null,null,null,null,null,null,null,null,null,"",null,96]
[null,97,null,null,"",null,null,null,null,null,null,null,null,null,null,null,"",null,97]
[null,98,null,null,"",null,null,null,null,null,null,null,null,null,null,null,"",null,98]
[null,99,null,null,"",null,null,null,null,null,null,null,null,null,null,null,"",null,99]
[null,100,null,null,"",null,null,null,null,null,null,null,null,null,null,null,"",null,100]
[null,101,null,null,"",null,null,null,null,null,null,null,null,null,null,null,"",null,101]
[]
[]
[]
[null,null,null,null,null,null,null,null,null,null,null,null,null,null,null,null,null,null,null,"1,0","A"]
[null,null,null,null,null,null,null,null,null,null,null,null,null,null,null,null,null,null,null,"0,1","J"]
[null,null,null,null,null,null,null,null,null,null,null,null,null,null,null,null,null,null,null,"1,1"]
[null,null,null,null,null,null,null,null,null,null,null,null,null,null,null,null,null,null,null,4]
[null,null,null,null,null,null,null,null,null,null,null,null,null,null,null,null,null,null,null,3.1]
[null,null,null,null,null,null,null,null,null,null,null,null,null,null,null,null,null,null,null,2.2000000000000002]
[null,null,null,null,null,null,null,null,null,null,null,null,null,null,null,null,null,null,null,1.3]
[null,null,null,null,null,null,null,null,null,null,null,null,null,null,null,null,null,null,null,0.4]